bitfinex/quotes_SOLUSD_20260228
["timestamp","ask_amount","ask_price","bid_price","bid_amount"]
[1772265507334,6.43369542,78.86,78.833,0.73410926]
[1772265507533,0.74446558,78.86,78.832,44.39821391]
[1772265507736,0.74446558,78.849,78.819,0.73410926]
[1772265507953,0.74446558,78.839,78.819,0.73410926]
[1772265508953,0.74446558,78.846,78.819,0.73410926]
[1772265509134,0.74446558,78.846,78.82,13.4212445]
[1772265509336,0.74446558,78.846,78.821,0.73410926]
[1772265510556,0.74446558,78.846,78.823,0.73410926]
[1772265510849,6.43369542,78.85,78.823,0.73410926]
[1772265511053,0.74446558,78.853,78.823,0.73410926]
[1772265511844,7.178161,78.86,78.823,0.73410926]
[1772265512042,0.74446558,78.859,78.823,0.73410926]
[1772265512655,0.74446558,78.859,78.83,6.43369542]
[1772265512850,0.74446558,78.859,78.831,0.73410926]
[1772265513056,0.74446558,78.865,78.831,0.73410926]
[1772265513257,6.43369542,78.86,78.831,0.73410926]
[1772265514258,6.43369542,78.86,78.833,0.73410926]
[1772265515150,0.74446558,78.859,78.833,0.73410926]
[1772265515736,6.59263056,78.871,78.833,0.73410926]
[1772265515737,0.74446558,78.865,78.833,0.73410926]
[1772265515947,7.178161,78.86,78.833,0.73410926]
[1772265516147,0.74446558,78.859,78.834,12.68488215]
[1772265516343,0.74446558,78.859,78.835,0.73410926]
[1772265517138,0.74446558,78.846,78.812,0.73410926]
[1772265517538,44.38301271,78.859,78.812,0.73410926]
[1772265517539,0.74446558,78.839,78.812,0.73410926]
[1772265518439,0.74446558,78.839,78.791,63.45868988]
[1772265518440,0.74446558,78.839,78.814,0.73410926]
[1772265519965,0.74446558,78.839,78.816,0.73410926]
[1772265520869,6.43369542,78.85,78.821,0.70529478]
[1772265521164,0.73299099,78.839,78.816,0.70529478]
[1772265522058,0.73299099,78.839,78.818,0.71242481]
[1772265522257,6.43369542,78.85,78.818,0.71242481]
[1772265522556,6.43369542,78.85,78.817,12.68761815]
[1772265522557,6.59263056,78.871,78.831,0.71242481]
[1772265522558,0.75310987,78.863,78.831,0.71242481]
[1772265522739,6.43369542,78.86,78.831,0.71242481]
[1772265523139,0.75310987,78.863,78.831,0.71242481]
[1772265523860,0.75310987,78.859,78.831,0.71242481]
[1772265524058,0.75310987,78.859,78.833,0.71242481]
[1772265526067,0.75310987,78.865,78.835,0.71242481]
[1772265526755,0.75310987,78.863,78.835,0.71242481]
[1772265527759,0.75310987,78.863,78.837,0.71242481]
[1772265528954,0.75310987,78.863,78.839,0.71242481]
[1772265530362,6.43369542,78.86,78.839,0.71242481]
[1772265530590,7.18680529,78.86,78.839,0.71242481]
[1772265531146,0.75310987,78.859,78.839,0.71242481]
[1772265531343,0.75310987,78.859,78.84,12.68391679]
[1772265531547,0.75310987,78.859,78.84,13.3963416]
[1772265531953,6.43369542,78.86,78.841,0.71242481]
[1772265532155,0.75310987,78.865,78.841,0.71242481]
[1772265532870,0.75310987,78.865,78.832,31.71300994]
[1772265532871,0.75310987,78.865,78.843,0.71242481]
[1772265534655,12.6799675,78.865,78.843,0.71242481]
[1772265534858,6.43369542,78.86,78.843,0.71242481]
[1772265535067,6.43369542,78.86,78.844,12.68327329]
[1772265535862,6.43369542,78.86,78.844,13.3956981]
[1772265536258,0.75310987,78.864,78.845,0.71242481]
[1772265536873,0.75310987,78.864,78.846,13.39537638]
[1772265537772,6.43369542,78.86,78.846,0.71242481]
[1772265538275,0.75310987,78.864,78.846,0.71242481]
[1772265539356,0.75310987,78.864,78.847,12.68279072]
[1772265539674,6.43369542,78.86,78.846,0.71242481]
[1772265541175,6.43369542,78.86,78.807,63.44538364]
[1772265541176,0.75310987,78.859,78.769,5.36086188]
[1772265541360,0.75310987,78.839,78.775,5.36086188]
[1772265542576,0.75310987,78.839,78.81,6.43369542]
[1772265543156,0.75310987,78.839,78.813,0.71242481]
[1772265545263,0.75310987,78.839,78.815,0.71242481]
[1772265546578,0.75310987,78.844,78.815,0.71242481]
[1772265546878,0.75310987,78.839,78.815,0.71242481]
[1772265547875,0.75310987,78.839,78.817,0.71242481]
[1772265548764,0.75310987,78.839,78.819,0.71242481]
[1772265549377,0.75310987,78.839,78.818,12.68745717]
[1772265549589,1e-08,78.86,78.83,6.43485984]
[1772265549762,0.2,78.94,78.851,0.71242481]
[1772265549763,0.75310987,78.886,78.851,0.71242481]
[1772265550082,0.75310987,78.886,78.86,6.43485984]
[1772265550678,0.75310987,78.886,78.862,44.38132433]
[1772265550871,0.75310987,78.886,78.863,0.73298392]
[1772265553106,0.75310987,78.886,78.864,12.6800568]
[1772265553282,0.75310987,78.886,78.864,13.41304072]
[1772265553685,0.75310987,78.886,78.864,12.6800568]
[1772265553882,0.7367343,78.885,78.859,12.68086077]
[1772265554375,0.7367343,78.885,78.86,0.73298392]
[1772265555580,0.7367343,78.885,78.861,13.41352309]
[1772265556880,6.58600645,78.912,78.851,31.70503974]
[1772265556881,0.7367343,78.906,78.871,0.73298392]
[1772265557784,6.43485984,78.9,78.871,0.73298392]
[1772265558087,0.7367343,78.899,78.871,0.73298392]
[1772265558388,0.7367343,78.899,78.873,0.73298392]
[1772265559479,0.7367343,78.899,78.87,6.43485984]
[1772265559480,0.7367343,78.889,78.861,0.73298392]
[1772265559784,12.67459251,78.898,78.861,0.73298392]
[1772265559785,7.17159414,78.88,78.861,0.73298392]
[1772265560100,7.17159414,78.88,78.856,12.68130447]
[1772265560101,0.7367343,78.879,78.856,12.68130447]
[1772265561590,0.7367343,78.879,78.856,0.73298392]
[1772265563804,0.7367343,78.879,78.857,12.68118239]
[1772265566375,0.7367343,78.879,78.857,0.73298392]
[1772265568581,0.7367343,78.891,78.859,0.73298392]
[1772265568778,0.7367343,78.889,78.859,0.73298392]
[1772265569772,0.7367343,78.889,78.861,0.73298392]
[1772265571677,0.7367343,78.889,78.862,12.68037838]
[1772265572294,6.56594555,78.922,78.858,31.70255395]
[1772265572295,0.7367343,78.879,78.858,12.68096447]
[1772265572682,0.7367343,78.879,78.859,0.73298392]
[1772265573501,0.7367343,78.879,78.858,12.68096447]
[1772265574402,0.7367343,78.879,78.859,0.73298392]
[1772265575985,0.7367343,78.879,78.86,12.68069997]
[1772265578290,0.7367343,78.879,78.841,44.39314569]
[1772265578491,0.7367343,78.879,78.842,0.73298392]
[1772265579606,0.7367343,78.877,78.842,0.73298392]
[1772265580310,6.43485984,78.87,78.844,0.73298392]
[1772265580508,0.66939448,78.869,78.844,0.73298392]
[1772265580995,6.43485984,78.86,78.844,0.73298392]
[1772265581198,0.66939448,78.859,78.843,12.68343416]
[1772265585202,0.66939448,78.859,78.839,0.70778327]
[1772265585203,0.65272223,78.849,78.821,12.68697428]
[1772265585411,6.43485984,78.88,78.801,0.65103828]
[1772265585412,0.65272223,78.839,78.801,0.65103828]
[1772265585793,0.65272223,78.839,78.802,0.65103828]
[1772265586898,6.43485984,78.84,78.811,0.65103828]
[1772265588395,0.65272223,78.871,78.811,0.65103828]
[1772265588589,0.65272223,78.871,78.779,0.65103828]
[1772265588590,6.43485984,78.82,78.779,0.65103828]
[1772265588794,6.43485984,78.84,78.648,6.6]
[1772265588795,6.43485984,78.81,78.782,0.65103828]
[1772265588994,6.43485984,78.81,78.77,6.43485984]
[1772265588995,6.43485984,78.82,78.784,0.65103828]
[1772265589698,6.43485984,78.82,78.791,0.65103828]
[1772265589901,6.43485984,78.83,78.791,0.65103828]
[1772265590208,6.43485984,78.83,78.793,0.65103828]
[1772265590415,6.43485984,78.83,78.792,12.69164382]
[1772265590416,0.65272223,78.809,78.792,12.69164382]
[1772265591514,0.65272223,78.809,78.788,13.34332153]
[1772265592009,0.65272223,78.809,78.789,0.65103828]
[1772265592311,0.65272223,78.809,78.791,0.65103828]
[1772265592910,6.43485984,78.81,78.791,0.65103828]
[1772265593122,0.65272223,78.816,78.791,0.65103828]
[1772265594111,6.43485984,78.81,78.791,0.65103828]
[1772265594410,6.43485984,78.82,78.793,0.65103828]
[1772265594617,0.65272223,78.819,78.793,0.65103828]
[1772265595516,6.43485984,78.81,78.793,0.65103828]
[1772265596292,6.43485984,78.81,78.794,12.69132167]
[1772265597412,0.65272223,78.809,78.79,0.65103828]
[1772265598896,0.65272223,78.809,78.791,12.6918049]
[1772265600015,0.65272223,78.799,78.781,12.69341592]
[1772265600204,12.68906709,78.808,78.769,0.65103828]
[1772265600205,0.65272223,78.789,78.77,12.69518852]
[1772265600903,0.65272223,78.779,78.751,12.69825145]
[1772265601104,12.67957447,78.867,78.754,0.65103828]
[1772265601304,6.43485984,78.79,78.761,0.65103828]
[1772265601616,6.43485984,78.77,78.751,44.44388007]
[1772265601818,6.43485984,78.77,78.75,0.1]
[1772265602003,6.43485984,78.8,78.75,0.1]
[1772265602004,6.43485984,78.78,78.75,44.54437478]
[1772265602403,6.43485984,78.78,78.751,0.65103828]
[1772265602906,6.43485984,78.78,78.752,12.6980902]
[1772265603224,0.65272223,78.769,78.75,0.1]
[1772265603723,7.08758207,78.76,78.74,0.75103828]
[1772265604100,0.65272223,78.759,78.741,12.69986411]
[1772265604323,7.08758207,78.76,78.742,0.65103828]
[1772265604541,0.65272223,78.749,78.72,0.75103828]
[1772265604831,0.65272223,78.749,78.71,6.53485984]
[1772265604832,0.65272223,78.729,78.71,0.1]
[1772265605647,0.65272223,78.729,78.701,0.2430495]
[1772265605648,0.65272223,78.719,78.701,0.2430495]
[1772265605805,0.65272223,78.709,78.687,12.70857956]
[1772265606209,44.45639253,78.729,78.641,0.65103828]
[1772265606210,0.65272223,78.699,78.641,0.65103828]
[1772265606402,6.45250684,78.72,78.651,0.65103828]
[1772265606403,6.45250684,78.68,78.651,0.65103828]
[1772265606601,6.45250684,78.68,78.641,44.50604645]
[1772265606602,6.97869992,78.719,78.671,0.65103828]
[1772265606821,6.97869992,78.719,78.67,6.45250684]
[1772265606822,6.45250684,78.71,78.681,0.65103828]
[1772265607018,0.65272223,78.699,78.641,0.65103828]
[1772265607216,6.45250684,78.7,78.641,0.65103828]
[1772265607217,0.65272223,78.679,78.644,0.65103828]
[1772265607402,6.45250684,78.68,78.6,6.45250684]
[1772265607403,0.65272223,78.649,78.606,0.65103828]
[1772265607604,6.45250684,78.64,78.606,0.65103828]
[1772265608123,6.45250684,78.63,78.606,0.65103828]
[1772265608302,6.45250684,78.63,78.56,6.45250684]
[1772265608303,5.36086188,78.677,78.545,8.562734]
[1772265608506,22.36246273,78.679,78.601,0.65103828]
[1772265608703,6.45250684,78.65,78.601,0.65103828]
[1772265609016,6.45250684,78.64,78.611,0.65103828]
[1772265609210,31.78569587,78.652,78.611,0.65103828]
[1772265609526,57.18,78.68,78.631,0.65103828]
[1772265609527,0.53722157,78.669,78.631,0.65103828]
[1772265609901,0.53722157,78.669,78.612,44.52246475]
[1772265609902,22.36246273,78.674,78.641,0.65103828]
[1772265610115,17.3255986,78.67,78.641,0.65103828]
[1772265610428,17.3255986,78.66,78.631,0.69794924]
[1772265610725,17.3255986,78.67,78.641,0.69794924]
[1772265611220,12.71148737,78.669,78.635,12.71693802]
[1772265611420,0.5626437,78.659,78.622,0.69794924]
[1772265611618,0.5626437,78.659,78.631,0.69794924]
[1772265611821,0.57131455,78.667,78.631,0.69794924]
[1772265612025,24.16319816,78.673,78.641,0.69794924]
[1772265612229,17.3255986,78.67,78.641,0.69794924]
[1772265612521,24.73451271,78.673,78.641,0.69794924]
[1772265612819,17.3255986,78.7,78.661,0.69794924]
[1772265613020,0.57812691,78.699,78.67,0.69794924]
[1772265613424,0.57812691,78.697,78.67,0.69794924]
[1772265613821,17.3255986,78.69,78.662,0.69794924]
[1772265614126,17.3255986,78.72,78.629,0.69794924]
[1772265614127,0.58486103,78.669,78.629,0.69794924]
[1772265614422,0.58486103,78.669,78.592,12.72394136]
[1772265614423,0.58486103,78.657,78.62,0.69794924]
[1772265614625,0.59151781,78.639,78.601,0.69794924]
[1772265614926,17.3255986,78.62,78.582,0.69794924]
[1772265615104,0.59151781,78.658,78.583,0.69794924]
[1772265615301,0.59151781,78.658,78.591,0.69794924]
[1772265615302,17.3255986,78.63,78.591,0.69794924]
[1772265615506,17.3255986,78.64,78.601,0.69794924]
[1772265615803,13.69212662,78.657,78.584,44.5383284]
[1772265615804,0.59809812,78.649,78.611,0.69794924]
[1772265616005,0.97869998,78.657,78.611,0.69794924]
[1772265616228,17.3255986,78.65,78.621,0.69794924]
[1772265616541,0.59809812,78.656,78.621,0.69794924]
[1772265617028,17.3255986,78.65,78.621,0.69794924]
[1772265617321,0.97869998,78.657,78.613,0.69794924]
[1772265617322,17.3255986,78.64,78.613,0.69794924]
[1772265618224,0.97869998,78.657,78.621,0.69794924]
[1772265618417,0.97869998,78.657,78.631,0.69794924]
[1772265618820,0.61103287,78.678,78.641,0.69794924]
[1772265619220,17.3255986,78.67,78.642,12.71585158]
[1772265619423,17.3255986,78.66,78.635,0.69794924]
[1772265619729,0.61738904,78.669,78.635,0.69794924]
[1772265620218,17.3255986,78.66,78.635,0.69794924]
[1772265620522,0.61738904,78.669,78.635,0.69794924]
[1772265620723,12.71142818,78.67,78.621,44.51736812]
[1772265620724,0.62367219,78.659,78.622,0.69794924]
[1772265621331,0.62988318,78.667,78.631,0.69794924]
[1772265621529,17.3255986,78.66,78.631,0.69794924]
[1772265622322,0.63602283,78.649,78.623,12.71892448]
[1772265622516,0.63602283,78.649,78.578,63.02160583]
[1772265622517,0.63602283,78.639,78.609,0.69794924]
[1772265623215,17.3255986,78.64,78.609,0.69794924]
[1772265623411,17.3255986,78.64,78.611,0.69794924]
[1772265624334,17.3255986,78.64,78.576,5.36086188]
[1772265624335,17.97196514,78.62,78.593,0.69794924]
[1772265624515,17.3255986,78.62,78.593,0.69794924]
[1772265625531,17.97196514,78.63,78.595,0.69794924]
[1772265625744,17.97196514,78.64,78.595,0.69794924]
[1772265626036,17.97196514,78.66,78.621,0.69794924]
[1772265626226,17.3255986,78.65,78.621,0.69794924]
[1772265626542,0.64636654,78.659,78.621,0.69794924]
[1772265627417,17.3255986,78.66,78.622,12.71908626]
[1772265627613,17.3255986,78.66,78.623,0.69794924]
[1772265628038,0.64636654,78.659,78.623,0.69794924]
[1772265628532,12.71310339,78.659,78.623,0.69794924]
[1772265628736,0.64636654,78.658,78.623,0.69794924]
[1772265628927,17.3255986,78.66,78.623,0.69794924]
[1772265629837,0.64636654,78.659,78.625,0.69794924]
[1772265630433,17.3255986,78.67,78.631,0.69794924]
[1772265630734,0.64636654,78.677,78.641,0.69794924]
[1772265630918,12.71035639,78.676,78.641,0.69794924]
[1772265631121,0.64636654,78.669,78.633,0.69794924]
[1772265631319,0.64636654,78.669,78.589,1.2724427]
[1772265631320,0.64636654,78.649,78.614,0.69794924]
[1772265631635,17.3255986,78.64,78.614,0.69794924]
[1772265631824,17.3255986,78.64,78.616,0.69794924]
[1772265632542,17.3255986,78.65,78.616,0.69794924]
[1772265633130,0.64636654,78.649,78.616,0.69794924]
[1772265633325,0.64636654,78.649,78.554,1.27300964]
[1772265633326,0.64636654,78.629,78.591,0.69794924]
[1772265633636,0.64636654,78.629,78.593,0.69794924]
[1772265633836,0.64636654,78.629,78.595,0.69794924]
[1772265634041,12.71811568,78.628,78.595,0.69794924]
[1772265634342,12.71811568,78.628,78.594,12.72361757]
[1772265634343,0.64636654,78.639,78.601,0.69794924]
[1772265634839,17.3255986,78.66,78.621,0.69794924]
[1772265635140,0.64636654,78.658,78.621,0.69794924]
[1772265635342,17.3255986,78.64,78.611,0.69794924]
[1772265635658,0.64636654,78.649,78.611,0.69794924]
[1772265635659,0.64636654,78.658,78.611,0.69794924]
[1772265635829,17.3255986,78.64,78.613,0.69794924]
[1772265636026,17.97196514,78.64,78.613,0.69794924]
[1772265636223,17.3255986,78.64,78.613,0.69794924]
[1772265636418,17.3255986,78.64,78.553,63.33930637]
[1772265636419,0.64636654,78.629,78.592,12.72383378]
[1772265636758,0.64636654,78.619,78.586,12.72478163]
[1772265636931,0.64636654,78.619,78.59,17.3255986]
[1772265637124,0.64636654,78.619,78.586,12.72478163]
[1772265637434,0.64636654,78.619,78.59,17.3255986]
[1772265637640,0.64636654,78.632,78.6,17.3255986]
[1772265637843,12.71763045,78.631,78.601,12.72248444]
[1772265638341,0.64636654,78.629,78.598,0.69794924]
[1772265638530,0.64636654,78.619,78.589,0.69794924]
[1772265638726,0.64636654,78.619,78.59,0.69794924]
[1772265639952,12.71973339,78.618,78.592,0.69794924]
[1772265640144,0.64636654,78.617,78.592,0.69794924]
[1772265640350,0.64636654,78.617,78.586,12.72483509]
[1772265640532,12.71973339,78.618,78.575,0.75169467]
[1772265640533,17.3255986,78.6,78.575,0.75169467]
[1772265640740,17.3255986,78.6,78.576,13.47822694]
[1772265640930,0.76943932,78.609,78.577,0.75169467]
[1772265641538,0.76943932,78.629,78.591,0.75169467]
[1772265641933,0.76943932,78.629,78.593,0.75169467]
[1772265642146,13.48745581,78.629,78.593,0.75169467]
[1772265642547,0.76943932,78.629,78.593,0.75169467]
[1772265642855,0.76943932,78.629,78.601,0.77654675]
[1772265643237,13.45365252,78.633,78.601,0.77654675]
[1772265644054,0.73627396,78.632,78.603,0.77654675]
[1772265644631,0.73627396,78.639,78.605,0.77654675]
[1772265644859,0.73627396,78.648,78.611,0.77654675]
[1772265645548,18.06187256,78.64,78.611,0.77654675]
[1772265645730,0.73627396,78.639,78.611,0.77654675]
[1772265646553,0.73627396,78.639,78.612,12.72070421]
[1772265647548,0.73627396,78.637,78.612,12.72070421]
[1772265647740,0.73627396,78.637,78.613,0.77654675]
[1772265648555,12.71795393,78.629,78.613,0.77654675]
[1772265648746,12.71795393,78.629,78.601,0.77654675]
[1772265648948,12.71795393,78.629,78.6,17.3255986]
[1772265648949,12.71720192,78.634,78.604,0.77654675]
[1772265649762,17.3255986,78.64,78.604,0.77654675]
[1772265649941,0.73627396,78.639,78.604,0.77654675]
[1772265650676,0.73627396,78.638,78.606,0.77654675]
[1772265651363,0.73627396,78.629,78.6,0.77654675]
[1772265652461,0.73627396,78.628,78.601,12.72248444]
[1772265652760,0.73627396,78.619,78.589,0.77654675]
[1772265653262,0.73627396,78.626,78.591,0.77654675]
[1772265654257,17.3255986,78.63,78.591,0.77654675]
[1772265654556,12.7166137,78.638,78.603,0.77654675]
[1772265654759,0.73627396,78.643,78.611,0.77654675]
[1772265655138,17.3255986,78.65,78.611,0.77654675]
[1772265655139,0.73627396,78.64,78.611,0.77654675]
[1772265655347,0.73627396,78.639,78.611,0.77654675]
[1772265658353,0.73627396,78.637,78.611,0.77654675]
[1772265658556,44.50774434,78.638,78.571,63.63634218]
[1772265658557,0.73627396,78.629,78.603,0.77654675]
[1772265659567,0.73627396,78.619,78.594,0.77654675]
[1772265659960,16.56187256,78.62,78.594,0.77654675]
[1772265660670,17.3255986,78.61,78.581,0.77654675]
[1772265660850,17.3255986,78.6,78.581,0.77654675]
[1772265661044,17.3255986,78.61,78.581,0.77654675]
[1772265661250,44.51850061,78.619,78.576,0.77654675]
[1772265661464,17.3255986,78.6,78.576,0.77654675]
[1772265661673,44.51850061,78.619,78.569,0.77654675]
[1772265661852,17.3255986,78.6,78.569,0.77654675]
[1772265662171,0.73627396,78.599,78.569,0.77654675]
[1772265662575,12.72297005,78.598,78.569,0.77654675]
[1772265662757,13.45924401,78.598,78.569,0.77654675]
[1772265663263,13.45924401,78.598,78.551,0.77654675]
[1772265663264,0.73627396,78.579,78.551,0.77654675]
[1772265663569,0.73627396,78.579,78.525,8.16189739]
[1772265663570,0.73627396,78.559,78.518,12.73580094]
[1772265663875,17.3255986,78.55,78.518,12.73580094]
[1772265664374,0.73627396,78.539,78.51,0.1]
[1772265664572,5.36086188,78.596,78.51,17.4255986]
[1772265664573,0.73627396,78.547,78.51,17.4255986]
[1772265664753,0.73627396,78.539,78.51,0.1]
[1772265665875,0.60907396,78.539,78.51,0.87654675]
[1772265666273,12.7326899,78.538,78.51,0.87654675]
[1772265666576,0.60907396,78.539,78.51,0.87654675]
[1772265666987,0.60907396,78.539,78.49,0.2]
[1772265666988,17.3255986,78.52,78.49,0.2]
[1772265667157,17.3255986,78.51,78.484,0.77654675]
[1772265667356,14.48518446,78.51,78.476,0.77654675]
[1772265667572,14.48518446,78.5,78.468,0.77654675]
[1772265668189,0.73627396,78.538,78.461,0.77654675]
[1772265668478,0.73627396,78.509,78.471,0.77654675]
[1772265668677,14.48518446,78.53,78.49,14.48518446]
[1772265668857,14.48518446,78.52,78.491,0.77654675]
[1772265669062,44.5649821,78.537,78.491,0.77654675]
[1772265669063,0.73627396,78.528,78.491,0.77654675]
[1772265669268,0.73627396,78.519,78.491,0.77654675]
[1772265669455,14.48518446,78.5,78.469,0.77654675]
[1772265669660,44.5649821,78.537,78.481,0.77654675]
[1772265669661,0.73627396,78.519,78.481,0.77654675]
[1772265669985,0.73627396,78.509,78.481,0.77654675]
[1772265670360,0.73627396,78.509,78.482,12.74177518]
[1772265670566,12.7375554,78.508,78.481,0.77654675]
[1772265670787,0.73627396,78.509,78.482,0.76883567]
[1772265671088,50.8836151,78.611,78.501,0.76883567]
[1772265671089,12.73252778,78.539,78.501,0.76883567]
[1772265671481,0.78216051,78.538,78.501,0.76883567]
[1772265672284,0.78216051,78.538,78.459,5.36086188]
[1772265672285,44.58144392,78.508,78.471,0.76883567]
[1772265672576,0.78216051,78.479,78.45,0.2]
[1772265672784,0.78216051,78.479,78.393,63.18651689]
[1772265672785,14.48518446,78.46,78.435,0.76883567]
[1772265673274,0.78216051,78.449,78.418,12.75203265]
[1772265673683,0.78216051,78.459,78.421,0.76883567]
[1772265673860,14.48518446,78.5,78.421,0.76883567]
[1772265673861,15.26734497,78.45,78.421,0.76883567]
[1772265674060,15.26734497,78.45,78.41,18.97064252]
[1772265674061,0.78216051,78.449,78.41,5.25429373]
[1772265674276,0.78216051,78.449,78.411,0.76883567]
[1772265674474,0.78216051,78.447,78.411,0.76883567]
[1772265674670,0.78216051,78.439,78.41,4.48545806]
[1772265675265,0.78216051,78.439,78.411,0.76883567]
[1772265675469,14.48518446,78.46,78.421,0.76883567]
[1772265675673,0.78216051,78.459,78.421,0.76883567]
[1772265676070,14.48518446,78.45,78.421,0.76883567]
[1772265676283,0.78216051,78.449,78.412,0.76883567]
[1772265676585,0.78216051,78.449,78.414,0.76883567]
[1772265676773,14.48518446,78.46,78.421,0.76883567]
[1772265677382,12.7451855,78.461,78.43,0.76883567]
[1772265677778,15.26734497,78.46,78.43,0.76883567]
[1772265677981,0.78216051,78.466,78.431,0.76883567]
[1772265678366,0.78216051,78.459,78.431,13.51880713]
[1772265678567,12.74567284,78.458,78.431,0.76883567]
[1772265679276,0.78216051,78.459,78.432,12.749898]
[1772265679788,0.78216051,78.457,78.427,12.75059702]
[1772265679984,0.78216051,78.459,78.418,0.76883567]
[1772265680191,0.78216051,78.458,78.421,0.76883567]
[1772265680379,14.48518446,78.45,78.421,0.76883567]
[1772265680585,14.48518446,78.45,78.422,13.52035947]
[1772265680782,27.23227498,78.45,78.422,13.52035947]
[1772265680984,0.78216051,78.449,78.422,0.76883567]
[1772265681178,0.78216051,78.449,78.417,12.75219923]
[1772265682474,63.67355001,78.499,78.41,19.73947819]
[1772265682475,14.48518446,78.43,78.41,4.48545806]
[1772265682682,63.8431849,78.486,78.41,4.48545806]
[1772265682683,0.78216051,78.449,78.412,0.76883567]
[1772265682880,12.74618644,78.455,78.412,0.76883567]
[1772265682881,0.78216051,78.439,78.412,0.76883567]
[1772265683285,0.78216051,78.439,78.41,4.48545806]
[1772265683491,0.78216051,78.454,78.412,0.76883567]
[1772265683690,0.78216051,78.449,78.412,0.76883567]
[1772265683892,0.78216051,78.439,78.411,12.75331267]
[1772265684476,13.53108322,78.438,78.411,12.75331267]
[1772265684787,13.53108322,78.438,78.41,4.48545806]
[1772265684788,0.78216051,78.437,78.41,4.48545806]
[1772265684995,0.78216051,78.437,78.411,12.75331267]
[1772265685196,0.78216051,78.447,78.412,0.76883567]
[1772265686093,0.78216051,78.447,78.411,44.63659435]
[1772265686094,31.86043744,78.468,78.421,0.76883567]
[1772265686299,31.86043744,78.468,78.411,44.63659435]
[1772265686300,0.78216051,78.467,78.431,0.76883567]
[1772265686494,0.78216051,78.466,78.433,0.76883567]
[1772265686795,0.78216051,78.489,78.45,15.25402013]
[1772265687293,0.78216051,78.489,78.451,0.76883567]
[1772265687884,0.78216051,78.489,78.46,14.48518446]
[1772265688102,12.73973427,78.495,78.432,108.374133]
[1772265688103,0.78216051,78.479,78.449,0.76883567]
[1772265688489,0.78216051,78.467,78.432,13.51873367]
[1772265689286,0.78216051,78.467,78.433,0.76883567]
[1772265690195,14.48518446,78.45,78.411,0.76883567]
[1772265690396,0.78216051,78.459,78.421,0.76883567]
[1772265690605,12.74713508,78.449,78.421,0.76883567]
[1772265690800,13.52929559,78.449,78.421,0.76883567]
[1772265690997,0.78216051,78.448,78.421,0.76883567]
[1772265691304,0.78216051,78.448,78.415,12.75261892]
[1772265692001,0.78216051,78.448,78.414,0.76883567]
[1772265693086,12.74404852,78.468,78.441,0.76883567]
[1772265693289,0.78216051,78.467,78.431,0.76883567]
[1772265693503,0.78216051,78.467,78.421,0.76883567]
[1772265693704,0.78216051,78.467,78.43,15.25402013]
[1772265693883,0.78216051,78.467,78.43,14.48518446]
[1772265694489,0.78216051,78.479,78.45,14.48518446]
[1772265695001,0.78216051,78.477,78.45,14.48518446]
[1772265695301,0.78216051,78.486,78.45,27.23215705]
[1772265695488,44.59337893,78.487,78.415,63.76331059]
[1772265695489,0.78216051,78.479,78.44,15.25402013]
[1772265696087,0.78216051,78.479,78.451,0.76883567]
[1772265696808,0.78216051,78.479,78.45,14.48518446]
[1772265697009,0.78216051,78.477,78.443,12.74811009]
[1772265697811,0.78216051,78.477,78.443,13.51694576]
[1772265698118,12.74242462,78.478,78.432,0.76883567]
[1772265698119,0.78216051,78.469,78.432,0.76883567]
[1772265698495,0.78216051,78.469,78.44,14.48518446]
[1772265698815,0.78216051,78.469,78.44,0.76883567]
[1772265699114,12.74404852,78.468,78.44,15.25402013]
[1772265699602,0.78216051,78.467,78.43,14.48518446]
[1772265699801,0.78216051,78.467,78.44,14.48518446]
[1772265700112,0.78216051,78.467,78.441,0.76883567]
[1772265700794,0.88408516,78.479,78.43,0.9133522]
[1772265700995,0.88408516,78.479,78.45,14.48518446]
[1772265701195,13.62650978,78.478,78.45,14.48518446]
[1772265701616,0.88408516,78.477,78.45,14.48518446]
[1772265702205,12.74181245,78.482,78.46,14.48518446]
[1772265702806,13.64651463,78.482,78.452,0.86169143]
[1772265703112,0.90470218,78.481,78.452,0.86169143]
[1772265703313,0.90470218,78.479,78.452,0.86169143]
[1772265703500,0.90470218,78.479,78.453,12.74648515]
[1772265703703,0.90470218,78.479,78.46,14.48518446]
[1772265704023,0.90470218,78.479,78.453,13.60817658]
[1772265704402,0.90470218,78.479,78.441,0.86169143]
[1772265704601,0.90470218,78.479,78.442,0.86169143]
[1772265705324,14.48518446,78.48,78.44,14.48518446]
[1772265705325,0.90470218,78.477,78.444,0.86169143]
[1772265706422,0.90470218,78.477,78.436,13.61077933]
[1772265706601,0.90470218,78.477,78.44,14.48518446]
[1772265708000,0.90470218,78.475,78.44,27.23374357]
[1772265708195,0.90470218,78.475,78.44,28.095435]
[1772265708401,0.90470218,78.475,78.441,0.86169143]
[1772265709825,31.85687343,78.476,78.442,0.86169143]
[1772265710122,14.48518446,78.48,78.444,0.86169143]
[1772265710301,14.48518446,78.49,78.45,14.48518446]
[1772265710502,14.48518446,78.49,78.451,0.86169143]
[1772265710804,6.56342231,78.519,78.431,0.86169143]
[1772265710805,14.48518446,78.47,78.431,0.86169143]
[1772265711208,14.48518446,78.47,78.438,0.86169143]
[1772265711501,14.48518446,78.48,78.44,14.48518446]